[Event "Titled Tuesday Blitz January 10 Early 2023"]
[White "Buscar, Michael"]
[Black "Muhammed , Zahid"]
[WhiteFideId "2603616"]
[BlackFideId "7800967"]
[WhiteElo "2010"]
[BlackElo "2746"]
[Result "0-1"]
[Round "01"]
[TimeControl "180+1"]
[Date "2023.01.10"]
[WhiteClock "0:00:08"]
[BlackClock "0:01:09"]

1. Nf3 {[%clk 0:02:49]}  Nf6 {[%clk 0:02:59]} 2. c4 {[%clk 0:02:47]}  g6 {[%clk 0:02:58]} 3. d4 {[%clk 0:02:46]}  b6 {[%clk 0:02:55]} 4. g3 {[%clk 0:02:45]}  Bb7 {[%clk 0:02:55]} 5. Bg2 {[%clk 0:02:45]}  Bg7 {[%clk 0:02:56]} 6. O-O {[%clk 0:02:45]}  O-O {[%clk 0:02:56]} 7. b3 {[%clk 0:02:46]}  d6 {[%clk 0:02:54]} 8. Bb2 {[%clk 0:02:46]}  a5 {[%clk 0:02:55]} 9. a3 {[%clk 0:02:43]}  Nbd7 {[%clk 0:02:52]} 10. Nbd2 {[%clk 0:02:42]}  Qe8 {[%clk 0:02:53]} 11. Qc2 {[%clk 0:02:42]}  e5 {[%clk 0:02:52]} 12. d5 {[%clk 0:02:38]}  h6 {[%clk 0:02:52]} 13. Ne1 {[%clk 0:02:35]}  Nh7 {[%clk 0:02:52]} 14. Nd3 {[%clk 0:02:29]}  f5 {[%clk 0:02:51]} 15. e4 {[%clk 0:02:29]}  Rf7 {[%clk 0:02:42]} 16. b4 {[%clk 0:02:16]}  Qf8 {[%clk 0:02:38]} 17. c5 {[%clk 0:01:50]}  Ba6 {[%clk 0:02:37]} 18. c6 {[%clk 0:01:29]}  Ndf6 {[%clk 0:02:31]} 19. bxa5 {[%clk 0:01:28]}  fxe4 {[%clk 0:02:11]} 20. Bxe4 {[%clk 0:01:28]}  Nxe4 {[%clk 0:02:04]} 21. Nxe4 {[%clk 0:01:28]}  Rf3 {[%clk 0:02:04]} 22. Rfd1 {[%clk 0:01:18]}  bxa5 {[%clk 0:01:52]} 23. Ne1 {[%clk 0:01:18]}  Rf7 {[%clk 0:01:51]} 24. Ng2 {[%clk 0:01:18]}  Bc8 {[%clk 0:01:48]} 25. Ne3 {[%clk 0:01:18]}  Bh3 {[%clk 0:01:46]} 26. Bc3 {[%clk 0:01:15]}  h5 {[%clk 0:01:41]} 27. Qd2 {[%clk 0:01:00]}  Bh6 {[%clk 0:01:36]} 28. Bxa5 {[%clk 0:00:51]}  Nf6 {[%clk 0:01:30]} 29. Nxf6+ {[%clk 0:00:45]}  Rxf6 {[%clk 0:01:31]} 30. Bc3 {[%clk 0:00:44]}  Ra4 {[%clk 0:01:28]} 31. Bb4 {[%clk 0:00:34]}  Qf7 {[%clk 0:01:22]} 32. Ra2 {[%clk 0:00:32]}  Rf3 {[%clk 0:01:21]} 33. Re1 {[%clk 0:00:27]}  Ra8 {[%clk 0:01:20]} 34. Qd3 {[%clk 0:00:20]}  Rf8 {[%clk 0:01:17]} 35. Ree2 {[%clk 0:00:08]}  Bxe3 {[%clk 0:01:09]} 36. Rxe3 {[%clk 0:00:08]}  Rxf2 {[%clk 0:01:09]} 0-1


[Site "https://www.chess.com"]

[Event "Titled Tuesday Blitz January 10 Early 2023"]
[White "Fedoseev, Vladimir"]
[Black "Hnydiuk, Aleksander"]
[WhiteFideId "24130737"]
[BlackFideId "1109057"]
[WhiteElo "2680"]
[BlackElo "2363"]
[Result "0-1"]
[Round "01"]
[TimeControl "180+2"]
[Date "2023.01.10"]
[WhiteClock "0:00:01"]
[BlackClock "0:00:48"]

1. Nf3 {[%clk 0:01:12]}  Nf6 {[%clk 0:02:56]} 2. g3 {[%clk 0:01:12]}  d5 {[%clk 0:02:53]} 3. Bg2 {[%clk 0:01:12]}  Nbd7 {[%clk 0:02:52]} 4. d4 {[%clk 0:01:10]}  b5 {[%clk 0:02:52]} 5. a4 {[%clk 0:01:08]}  b4 {[%clk 0:02:52]} 6. c4 {[%clk 0:01:08]}  bxc3 {[%clk 0:02:43]} 7. Nxc3 {[%clk 0:01:09]}  e6 {[%clk 0:02:42]} 8. O-O {[%clk 0:01:09]}  Be7 {[%clk 0:02:40]} 9. Bf4 {[%clk 0:01:03]}  O-O {[%clk 0:02:27]} 10. Nb5 {[%clk 0:01:02]}  Ne8 {[%clk 0:02:27]} 11. Rc1 {[%clk 0:01:02]}  c5 {[%clk 0:02:24]} 12. dxc5 {[%clk 0:00:58]}  Nxc5 {[%clk 0:02:23]} 13. Nfd4 {[%clk 0:00:59]}  Bd7 {[%clk 0:02:17]} 14. b4 {[%clk 0:00:24]}  Ne4 {[%clk 0:02:17]} 15. Qb3 {[%clk 0:00:18]}  a6 {[%clk 0:02:13]} 16. Nc7 {[%clk 0:00:18]}  Nxc7 {[%clk 0:02:12]} 17. Bxc7 {[%clk 0:00:16]}  Qe8 {[%clk 0:02:12]} 18. Bxe4 {[%clk 0:00:15]}  Bxa4 {[%clk 0:02:01]} 19. Bxh7+ {[%clk 0:00:14]}  Kxh7 {[%clk 0:02:02]} 20. Qb1+ {[%clk 0:00:13]}  Kg8 {[%clk 0:02:02]} 21. Nf3 {[%clk 0:00:10]}  Qb5 {[%clk 0:01:56]} 22. Nd4 {[%clk 0:00:06]}  Qxb4 {[%clk 0:01:52]} 23. Qd3 {[%clk 0:00:06]}  Bf6 {[%clk 0:01:44]} 24. Nf3 {[%clk 0:00:06]}  Bb5 {[%clk 0:01:41]} 25. Qd1 {[%clk 0:00:06]}  Rfc8 {[%clk 0:01:37]} 26. Re1 {[%clk 0:00:04]}  Bc4 {[%clk 0:01:32]} 27. Be5 {[%clk 0:00:04]}  Qe7 {[%clk 0:01:26]} 28. Qd4 {[%clk 0:00:03]}  a5 {[%clk 0:01:26]} 29. Bxf6 {[%clk 0:00:02]}  Qxf6 {[%clk 0:01:27]} 30. Ne5 {[%clk 0:00:02]}  a4 {[%clk 0:01:26]} 31. f4 {[%clk 0:00:03]}  a3 {[%clk 0:01:25]} 32. e4 {[%clk 0:00:02]}  a2 {[%clk 0:01:24]} 33. Ra1 {[%clk 0:00:02]}  dxe4 {[%clk 0:01:20]} 34. Qxe4 {[%clk 0:00:01]}  Bd5 {[%clk 0:01:18]} 35. Qe2 {[%clk 0:00:02]}  Qd8 {[%clk 0:01:17]} 36. Qf2 {[%clk 0:00:02]}  Qc7 {[%clk 0:01:14]} 37. f5 {[%clk 0:00:02]}  Qc5 {[%clk 0:01:10]} 38. Qxc5 {[%clk 0:00:03]}  Rxc5 {[%clk 0:01:10]} 39. f6 {[%clk 0:00:03]}  Rb5 {[%clk 0:01:00]} 40. Nd7 {[%clk 0:00:03]}  Ra7 {[%clk 0:00:55]} 41. Ne5 {[%clk 0:00:02]}  Rab7 {[%clk 0:00:54]} 42. fxg7 {[%clk 0:00:02]}  Rb1 {[%clk 0:00:52]} 43. Nd3 {[%clk 0:00:01]}  Rxa1 {[%clk 0:00:48]} 0-1


[Site "https://www.chess.com"]

[Event "Titled Tuesday Blitz January 10 Early 2023"]
[White "Sarana, Alexey"]
[Black "Parpiev, Isaak"]
[WhiteFideId "24133795"]
[BlackFideId "34281576"]
[WhiteElo "2685"]
[BlackElo "2167"]
[Result "1-0"]
[Round "01"]
[TimeControl "180+2"]
[Date "2023.01.10"]
[WhiteClock "0:01:51"]
[BlackClock "0:00:01"]

1. c4 {[%clk 0:02:52]}  Nf6 {[%clk 0:02:58]} 2. Nc3 {[%clk 0:02:51]}  e6 {[%clk 0:02:50]} 3. e4 {[%clk 0:02:52]}  d5 {[%clk 0:02:30]} 4. cxd5 {[%clk 0:02:52]}  exd5 {[%clk 0:02:30]} 5. e5 {[%clk 0:02:52]}  Ne4 {[%clk 0:02:13]} 6. Nf3 {[%clk 0:02:52]}  Nxc3 {[%clk 0:02:03]} 7. bxc3 {[%clk 0:02:52]}  c5 {[%clk 0:02:03]} 8. d4 {[%clk 0:02:44]}  Nc6 {[%clk 0:02:02]} 9. h3 {[%clk 0:02:41]}  Bf5 {[%clk 0:01:57]} 10. Bd3 {[%clk 0:02:39]}  Bxd3 {[%clk 0:01:48]} 11. Qxd3 {[%clk 0:02:40]}  cxd4 {[%clk 0:01:48]} 12. cxd4 {[%clk 0:02:38]}  Bb4+ {[%clk 0:01:48]} 13. Bd2 {[%clk 0:02:38]}  Bxd2+ {[%clk 0:01:48]} 14. Qxd2 {[%clk 0:02:38]}  Qa5 {[%clk 0:01:44]} 15. Rc1 {[%clk 0:02:29]}  Qxd2+ {[%clk 0:01:30]} 16. Kxd2 {[%clk 0:02:29]}  Ke7 {[%clk 0:01:29]} 17. Rc5 {[%clk 0:02:28]}  Rhd8 {[%clk 0:01:28]} 18. Rhc1 {[%clk 0:02:28]}  Rd7 {[%clk 0:01:26]} 19. Ke3 {[%clk 0:02:25]}  Nd8 {[%clk 0:01:18]} 20. Nh4 {[%clk 0:02:21]}  g6 {[%clk 0:01:15]} 21. f4 {[%clk 0:02:21]}  Ne6 {[%clk 0:01:12]} 22. R5c3 {[%clk 0:02:19]}  h5 {[%clk 0:01:10]} 23. f5 {[%clk 0:02:17]}  Nf8 {[%clk 0:00:40]} 24. Kf4 {[%clk 0:02:13]}  Rad8 {[%clk 0:00:23]} 25. g4 {[%clk 0:02:12]}  Ke8 {[%clk 0:00:13]} 26. gxh5 {[%clk 0:02:05]}  gxh5 {[%clk 0:00:13]} 27. Rg1 {[%clk 0:02:04]}  Ke7 {[%clk 0:00:07]} 28. Rg7 {[%clk 0:02:00]}  Ke8 {[%clk 0:00:06]} 29. Rg8 {[%clk 0:01:54]}  Ke7 {[%clk 0:00:06]} 30. f6+ {[%clk 0:01:50]}  Ke6 {[%clk 0:00:04]} 31. Nf3 {[%clk 0:01:51]}  Ng6+ {[%clk 0:00:01]} 32. Rxg6 {[%clk 0:01:50]}  fxg6 {[%clk 0:00:01]} 33. Ng5# {[%clk 0:01:51]} 1-0


[Site "https://www.chess.com"]

[Event "Titled Tuesday Blitz January 10 Early 2023"]
[White "Kozin, Yuri"]
[Black "Duda, Jan-Krzysztof"]
[WhiteFideId "4129920"]
[BlackFideId "1170546"]
[WhiteElo "2251"]
[BlackElo "2724"]
[Result "0-1"]
[Round "01"]
[TimeControl "180+2"]
[Date "2023.01.10"]
[WhiteClock "0:00:04"]
[BlackClock "0:00:58"]

1. e4 {[%clk 0:02:59]}  c6 {[%clk 0:02:58]} 2. d4 {[%clk 0:02:59]}  d5 {[%clk 0:02:59]} 3. exd5 {[%clk 0:03:00]}  cxd5 {[%clk 0:02:59]} 4. c4 {[%clk 0:03:01]}  Nf6 {[%clk 0:02:57]} 5. Nc3 {[%clk 0:03:01]}  e6 {[%clk 0:02:54]} 6. Nf3 {[%clk 0:03:01]}  Be7 {[%clk 0:02:49]} 7. cxd5 {[%clk 0:03:01]}  Nxd5 {[%clk 0:02:48]} 8. Bd3 {[%clk 0:03:01]}  Nxc3 {[%clk 0:02:41]} 9. bxc3 {[%clk 0:03:01]}  Qc7 {[%clk 0:02:42]} 10. Bd2 {[%clk 0:02:58]}  Nd7 {[%clk 0:02:39]} 11. O-O {[%clk 0:02:58]}  b6 {[%clk 0:02:40]} 12. Re1 {[%clk 0:02:42]}  Bb7 {[%clk 0:02:39]} 13. Ne5 {[%clk 0:02:42]}  Nxe5 {[%clk 0:02:36]} 14. Rxe5 {[%clk 0:02:41]}  Bf6 {[%clk 0:02:34]} 15. Rh5 {[%clk 0:02:38]}  g6 {[%clk 0:02:33]} 16. Rh3 {[%clk 0:02:38]}  O-O {[%clk 0:02:20]} 17. Qe2 {[%clk 0:02:24]}  e5 {[%clk 0:02:15]} 18. Qe3 {[%clk 0:01:52]}  Bg7 {[%clk 0:02:11]} 19. Qg3 {[%clk 0:01:52]}  Rfe8 {[%clk 0:02:04]} 20. Qh4 {[%clk 0:01:51]}  h5 {[%clk 0:02:01]} 21. Qg3 {[%clk 0:01:48]}  Qc6 {[%clk 0:02:00]} 22. dxe5 {[%clk 0:01:39]}  Rxe5 {[%clk 0:01:55]} 23. Bf4 {[%clk 0:01:33]}  Qxc3 {[%clk 0:01:36]} 24. Rf1 {[%clk 0:01:02]}  Re1 {[%clk 0:01:36]} 25. Bb5 {[%clk 0:00:14]}  Qb4 {[%clk 0:01:20]} 26. Bd6 {[%clk 0:00:03]}  Qb1 {[%clk 0:01:05]} 27. Rh4 {[%clk 0:00:03]}  Rxf1+ {[%clk 0:00:58]} 28. Bxf1 {[%clk 0:00:04]}  Ba6 {[%clk 0:00:58]} 0-1


[Site "https://www.chess.com"]

[Event "Titled Tuesday Blitz January 10 Early 2023"]
[White "Ezat, Mohamed"]
[Black "Andreikin, Dmitry"]
[WhiteFideId "10600906"]
[BlackFideId "4158814"]
[WhiteElo "2402"]
[BlackElo "2729"]
[Result "0-1"]
[Round "01"]
[TimeControl "180+2"]
[Date "2023.01.10"]
[WhiteClock "0:00:02"]
[BlackClock "0:01:45"]

1. d4 {[%clk 0:02:56]}  d5 {[%clk 0:02:58]} 2. c4 {[%clk 0:02:55]}  e6 {[%clk 0:02:58]} 3. Nc3 {[%clk 0:02:55]}  a6 {[%clk 0:02:59]} 4. cxd5 {[%clk 0:02:42]}  exd5 {[%clk 0:02:59]} 5. Bf4 {[%clk 0:02:43]}  Nf6 {[%clk 0:02:58]} 6. e3 {[%clk 0:02:43]}  c5 {[%clk 0:02:58]} 7. dxc5 {[%clk 0:02:41]}  Bxc5 {[%clk 0:02:58]} 8. Nf3 {[%clk 0:02:41]}  Nc6 {[%clk 0:02:56]} 9. h3 {[%clk 0:02:41]}  O-O {[%clk 0:02:56]} 10. Bd3 {[%clk 0:02:40]}  d4 {[%clk 0:02:54]} 11. exd4 {[%clk 0:02:40]}  Re8+ {[%clk 0:02:50]} 12. Be2 {[%clk 0:02:38]}  Nxd4 {[%clk 0:02:50]} 13. Nxd4 {[%clk 0:02:36]}  Bxd4 {[%clk 0:02:50]} 14. O-O {[%clk 0:02:34]}  Bf5 {[%clk 0:02:47]} 15. Bf3 {[%clk 0:02:28]}  Bd3 {[%clk 0:02:24]} 16. Re1 {[%clk 0:02:17]}  Rxe1+ {[%clk 0:02:24]} 17. Qxe1 {[%clk 0:02:16]}  Qb6 {[%clk 0:02:24]} 18. Rd1 {[%clk 0:02:10]}  Re8 {[%clk 0:02:23]} 19. Qd2 {[%clk 0:02:05]}  Bxc3 {[%clk 0:02:23]} 20. Qxc3 {[%clk 0:01:57]}  Be4 {[%clk 0:02:23]} 21. Rd6 {[%clk 0:01:00]}  Qb5 {[%clk 0:02:21]} 22. Rxf6 {[%clk 0:00:18]}  gxf6 {[%clk 0:02:16]} 23. Bxe4 {[%clk 0:00:13]}  Rxe4 {[%clk 0:02:12]} 24. Qxf6 {[%clk 0:00:07]}  Qc6 {[%clk 0:02:06]} 25. Qg5+ {[%clk 0:00:05]}  Kf8 {[%clk 0:01:47]} 26. Qd8+ {[%clk 0:00:04]}  Kg7 {[%clk 0:01:48]} 27. Qg5+ {[%clk 0:00:03]}  Qg6 {[%clk 0:01:48]} 28. Qh4 {[%clk 0:00:02]}  f6 {[%clk 0:01:45]} 0-1


[Site "https://www.chess.com"]

[Event "Titled Tuesday Blitz January 10 Early 2023"]
[White "Bluebaum, Matthias"]
[Black "Bazarov, Konstantin"]
[WhiteFideId "24651516"]
[BlackFideId "4137000"]
[WhiteElo "2669"]
[BlackElo "2235"]
[Result "1-0"]
[Round "01"]
[TimeControl "180+2"]
[Date "2023.01.10"]
[WhiteClock "0:00:39"]
[BlackClock "0:00:08"]

1. d4 {[%clk 0:03:00]}  d5 {[%clk 0:02:58]} 2. c4 {[%clk 0:02:58]}  c6 {[%clk 0:02:58]} 3. Nf3 {[%clk 0:02:59]}  Nf6 {[%clk 0:02:57]} 4. Nc3 {[%clk 0:02:59]}  dxc4 {[%clk 0:02:56]} 5. e4 {[%clk 0:02:58]}  b5 {[%clk 0:02:55]} 6. Qc2 {[%clk 0:02:59]}  e6 {[%clk 0:02:53]} 7. Be2 {[%clk 0:02:59]}  Be7 {[%clk 0:02:52]} 8. O-O {[%clk 0:02:59]}  Bb7 {[%clk 0:02:51]} 9. b3 {[%clk 0:02:59]}  cxb3 {[%clk 0:02:50]} 10. axb3 {[%clk 0:03:00]}  O-O {[%clk 0:02:47]} 11. e5 {[%clk 0:03:00]}  Nd5 {[%clk 0:02:45]} 12. Nxd5 {[%clk 0:03:00]}  Qxd5 {[%clk 0:02:41]} 13. Bd3 {[%clk 0:02:56]}  h6 {[%clk 0:02:39]} 14. Bh7+ {[%clk 0:02:54]}  Kh8 {[%clk 0:02:37]} 15. Be4 {[%clk 0:02:55]}  Qd8 {[%clk 0:02:35]} 16. Be3 {[%clk 0:02:52]}  Nd7 {[%clk 0:02:31]} 17. Qd2 {[%clk 0:02:44]}  f5 {[%clk 0:02:20]} 18. exf6 {[%clk 0:02:44]}  Rxf6 {[%clk 0:02:19]} 19. Rfc1 {[%clk 0:02:39]}  Qf8 {[%clk 0:01:58]} 20. Ne5 {[%clk 0:02:34]}  Nxe5 {[%clk 0:01:49]} 21. dxe5 {[%clk 0:02:35]}  Rf7 {[%clk 0:01:43]} 22. Bg6 {[%clk 0:02:34]}  Bb4 {[%clk 0:01:35]} 23. Qe2 {[%clk 0:02:34]}  Rd7 {[%clk 0:01:31]} 24. Qg4 {[%clk 0:02:35]}  Bd2 {[%clk 0:01:23]} 25. Qxe6 {[%clk 0:02:02]}  Re7 {[%clk 0:01:11]} 26. Qd6 {[%clk 0:01:49]}  Bxc1 {[%clk 0:00:59]} 27. Rxc1 {[%clk 0:01:50]}  Rd8 {[%clk 0:00:58]} 28. Qc5 {[%clk 0:01:50]}  Re6 {[%clk 0:00:54]} 29. Qc2 {[%clk 0:01:32]}  Rxe5 {[%clk 0:00:51]} 30. h4 {[%clk 0:01:30]}  Re6 {[%clk 0:00:44]} 31. h5 {[%clk 0:01:28]}  Rf6 {[%clk 0:00:43]} 32. Bc5 {[%clk 0:01:26]}  Qg8 {[%clk 0:00:41]} 33. Be7 {[%clk 0:01:26]}  Rfd6 {[%clk 0:00:38]} 34. Bxd6 {[%clk 0:01:08]}  Rxd6 {[%clk 0:00:38]} 35. Qc5 {[%clk 0:01:09]}  Qd8 {[%clk 0:00:37]} 36. Qxa7 {[%clk 0:01:05]}  Rd1+ {[%clk 0:00:36]} 37. Rxd1 {[%clk 0:01:05]}  Qxd1+ {[%clk 0:00:36]} 38. Kh2 {[%clk 0:01:06]}  Qd6+ {[%clk 0:00:36]} 39. g3 {[%clk 0:01:06]}  Qc7 {[%clk 0:00:33]} 40. b4 {[%clk 0:01:06]}  Kg8 {[%clk 0:00:29]} 41. Qe3 {[%clk 0:00:57]}  Qd7 {[%clk 0:00:29]} 42. Qe5 {[%clk 0:00:57]}  Qd8 {[%clk 0:00:26]} 43. Qe6+ {[%clk 0:00:55]}  Kh8 {[%clk 0:00:25]} 44. Be4 {[%clk 0:00:52]}  Ba8 {[%clk 0:00:20]} 45. Qg6 {[%clk 0:00:51]}  Kg8 {[%clk 0:00:17]} 46. Bc2 {[%clk 0:00:47]}  Bb7 {[%clk 0:00:15]} 47. Qe6+ {[%clk 0:00:44]}  Kh8 {[%clk 0:00:14]} 48. Qf5 {[%clk 0:00:44]}  Kg8 {[%clk 0:00:14]} 49. Qh7+ {[%clk 0:00:42]}  Kf7 {[%clk 0:00:14]} 50. Bb3+ {[%clk 0:00:42]}  Kf6 {[%clk 0:00:12]} 51. Qg6+ {[%clk 0:00:43]}  Ke5 {[%clk 0:00:12]} 52. Qxg7+ {[%clk 0:00:44]}  Ke4 {[%clk 0:00:12]} 53. Qxb7 {[%clk 0:00:43]}  Qf6 {[%clk 0:00:11]} 54. Qh7+ {[%clk 0:00:42]}  Kd4 {[%clk 0:00:10]} 55. Qc2 {[%clk 0:00:41]}  Qf3 {[%clk 0:00:09]} 56. Qb2+ {[%clk 0:00:40]}  Ke4 {[%clk 0:00:08]} 57. Bc2+ {[%clk 0:00:38]}  Kd5 {[%clk 0:00:08]} 58. Qb3+ {[%clk 0:00:39]} 1-0


[Site "https://www.chess.com"]

[Event "Titled Tuesday Blitz January 10 Early 2023"]
[White "Pham, Khoi"]
[Black "Jobava, Baadur"]
[WhiteFideId "1054988"]
[BlackFideId "13601520"]
[WhiteElo "2355"]
[BlackElo "2578"]
[Result "0-1"]
[Round "01"]
[TimeControl "180+2"]
[Date "2023.01.10"]
[WhiteClock "0:00:25"]
[BlackClock "0:00:31"]

1. e4 {[%clk 0:03:00]}  c6 {[%clk 0:02:47]} 2. Nc3 {[%clk 0:02:59]}  d5 {[%clk 0:02:48]} 3. Nf3 {[%clk 0:02:58]}  Bg4 {[%clk 0:02:48]} 4. h3 {[%clk 0:02:57]}  Bxf3 {[%clk 0:02:49]} 5. Qxf3 {[%clk 0:02:58]}  e6 {[%clk 0:02:50]} 6. d3 {[%clk 0:02:59]}  Nf6 {[%clk 0:02:49]} 7. Be2 {[%clk 0:02:57]}  Nbd7 {[%clk 0:02:50]} 8. O-O {[%clk 0:02:57]}  g6 {[%clk 0:02:50]} 9. Bf4 {[%clk 0:02:54]}  Bg7 {[%clk 0:02:49]} 10. a4 {[%clk 0:02:53]}  a5 {[%clk 0:02:48]} 11. d4 {[%clk 0:02:44]}  dxe4 {[%clk 0:02:45]} 12. Nxe4 {[%clk 0:02:45]}  Nxe4 {[%clk 0:02:45]} 13. Qxe4 {[%clk 0:02:46]}  O-O {[%clk 0:02:46]} 14. Rad1 {[%clk 0:02:42]}  Qb6 {[%clk 0:02:44]} 15. b3 {[%clk 0:02:36]}  Rfe8 {[%clk 0:02:43]} 16. Qd3 {[%clk 0:02:26]}  Rad8 {[%clk 0:02:40]} 17. Rfe1 {[%clk 0:02:17]}  Nf6 {[%clk 0:02:30]} 18. Qc4 {[%clk 0:02:08]}  Nd5 {[%clk 0:02:26]} 19. Bg3 {[%clk 0:02:07]}  Rd7 {[%clk 0:02:23]} 20. Bf3 {[%clk 0:02:03]}  Ne7 {[%clk 0:02:21]} 21. Be5 {[%clk 0:01:56]}  Red8 {[%clk 0:02:11]} 22. Qe2 {[%clk 0:01:34]}  Nf5 {[%clk 0:02:05]} 23. Bxg7 {[%clk 0:01:31]}  Kxg7 {[%clk 0:02:06]} 24. c3 {[%clk 0:01:07]}  Qxb3 {[%clk 0:01:47]} 25. Qe5+ {[%clk 0:01:06]}  Kg8 {[%clk 0:01:48]} 26. Qxa5 {[%clk 0:01:06]}  Qc4 {[%clk 0:01:43]} 27. Rb1 {[%clk 0:01:03]}  h5 {[%clk 0:01:28]} 28. g3 {[%clk 0:00:45]}  Re8 {[%clk 0:01:18]} 29. h4 {[%clk 0:00:41]}  Nd6 {[%clk 0:01:13]} 30. Be2 {[%clk 0:00:23]}  Qd5 {[%clk 0:01:13]} 31. Qxd5 {[%clk 0:00:23]}  exd5 {[%clk 0:01:12]} 32. Bd3 {[%clk 0:00:22]}  Ra8 {[%clk 0:01:10]} 33. Rb4 {[%clk 0:00:20]}  Kf8 {[%clk 0:01:10]} 34. Reb1 {[%clk 0:00:21]}  Ke7 {[%clk 0:01:08]} 35. Kg2 {[%clk 0:00:21]}  Kd8 {[%clk 0:01:07]} 36. Kf3 {[%clk 0:00:22]}  Kc7 {[%clk 0:01:08]} 37. Re1 {[%clk 0:00:22]}  Re8 {[%clk 0:00:58]} 38. Rxe8 {[%clk 0:00:21]}  Nxe8 {[%clk 0:00:59]} 39. Rb1 {[%clk 0:00:21]}  Ng7 {[%clk 0:00:54]} 40. a5 {[%clk 0:00:21]}  Ne6 {[%clk 0:00:52]} 41. a6 {[%clk 0:00:22]}  b5 {[%clk 0:00:51]} 42. Ra1 {[%clk 0:00:21]}  Kb6 {[%clk 0:00:50]} 43. g4 {[%clk 0:00:21]}  hxg4+ {[%clk 0:00:48]} 44. Kxg4 {[%clk 0:00:22]}  Ra7 {[%clk 0:00:48]} 45. Re1 {[%clk 0:00:21]}  Ng7 {[%clk 0:00:36]} 46. Kg5 {[%clk 0:00:18]}  Nh5 {[%clk 0:00:35]} 47. Be2 {[%clk 0:00:17]}  Ng7 {[%clk 0:00:33]} 48. Kf6 {[%clk 0:00:17]}  Ne8+ {[%clk 0:00:31]} 49. Kg5 {[%clk 0:00:17]}  Re7 {[%clk 0:00:30]} 50. h5 {[%clk 0:00:15]}  gxh5 {[%clk 0:00:29]} 51. Kxh5 {[%clk 0:00:15]}  Nd6 {[%clk 0:00:28]} 52. Kg5 {[%clk 0:00:15]}  Ne4+ {[%clk 0:00:28]} 53. Kf4 {[%clk 0:00:16]}  Nxc3 {[%clk 0:00:29]} 54. Kf3 {[%clk 0:00:16]}  Rxe2 {[%clk 0:00:27]} 55. Rxe2 {[%clk 0:00:17]}  Nxe2 {[%clk 0:00:27]} 56. Kxe2 {[%clk 0:00:18]}  Kxa6 {[%clk 0:00:28]} 57. Kd3 {[%clk 0:00:19]}  b4 {[%clk 0:00:26]} 58. Kc2 {[%clk 0:00:19]}  Kb5 {[%clk 0:00:27]} 59. Kb3 {[%clk 0:00:20]}  c5 {[%clk 0:00:27]} 60. dxc5 {[%clk 0:00:21]}  Kxc5 {[%clk 0:00:28]} 61. Kc2 {[%clk 0:00:21]}  Kc4 {[%clk 0:00:28]} 62. f4 {[%clk 0:00:22]}  d4 {[%clk 0:00:29]} 63. f5 {[%clk 0:00:23]}  f6 {[%clk 0:00:29]} 64. Kd2 {[%clk 0:00:23]}  b3 {[%clk 0:00:29]} 65. Kc1 {[%clk 0:00:24]}  Kc3 {[%clk 0:00:29]} 66. Kb1 {[%clk 0:00:25]}  d3 {[%clk 0:00:29]} 67. Kc1 {[%clk 0:00:25]}  b2+ {[%clk 0:00:29]} 68. Kb1 {[%clk 0:00:25]}  d2 {[%clk 0:00:29]} 69. Ka2 {[%clk 0:00:26]}  d1=Q {[%clk 0:00:30]} 70. Ka3 {[%clk 0:00:25]}  Qb3# {[%clk 0:00:31]} 0-1


[Site "https://www.chess.com"]

[Event "Titled Tuesday Blitz January 10 Early 2023"]
[White "Salem, A.R. Saleh"]
[Black "Danielyan, Vahe"]
[WhiteFideId "9301348"]
[BlackFideId "13304828"]
[WhiteElo "2677"]
[BlackElo "2346"]
[Result "1-0"]
[Round "01"]
[TimeControl "180+2"]
[Date "2023.01.10"]
[WhiteClock "0:01:37"]
[BlackClock "0:00:26"]

1. d4 {[%clk 0:02:56]}  Nf6 {[%clk 0:02:57]} 2. c4 {[%clk 0:02:56]}  g6 {[%clk 0:02:55]} 3. Nc3 {[%clk 0:02:54]}  Bg7 {[%clk 0:02:52]} 4. e4 {[%clk 0:02:54]}  d6 {[%clk 0:02:53]} 5. h3 {[%clk 0:02:55]}  c6 {[%clk 0:02:48]} 6. Be3 {[%clk 0:02:52]}  a6 {[%clk 0:02:48]} 7. a4 {[%clk 0:02:50]}  a5 {[%clk 0:02:48]} 8. Bd3 {[%clk 0:02:51]}  Na6 {[%clk 0:02:49]} 9. Rc1 {[%clk 0:02:51]}  Nb4 {[%clk 0:02:49]} 10. Bb1 {[%clk 0:02:52]}  O-O {[%clk 0:02:49]} 11. Nge2 {[%clk 0:02:52]}  e5 {[%clk 0:02:47]} 12. O-O {[%clk 0:02:52]}  Re8 {[%clk 0:02:47]} 13. Qd2 {[%clk 0:02:51]}  exd4 {[%clk 0:02:43]} 14. Nxd4 {[%clk 0:02:52]}  Qe7 {[%clk 0:02:42]} 15. Rce1 {[%clk 0:02:51]}  Bd7 {[%clk 0:02:41]} 16. f4 {[%clk 0:02:49]}  Rad8 {[%clk 0:02:38]} 17. f5 {[%clk 0:02:44]}  Qe5 {[%clk 0:02:30]} 18. Nf3 {[%clk 0:02:40]}  Qe7 {[%clk 0:02:29]} 19. Bg5 {[%clk 0:02:38]}  d5 {[%clk 0:02:20]} 20. e5 {[%clk 0:02:23]}  Qc5+ {[%clk 0:02:05]} 21. Be3 {[%clk 0:02:22]}  Qxc4 {[%clk 0:02:04]} 22. exf6 {[%clk 0:02:17]}  Bxf6 {[%clk 0:02:05]} 23. Bg5 {[%clk 0:01:58]}  Bxg5 {[%clk 0:01:21]} 24. Qxg5 {[%clk 0:01:59]}  Nd3 {[%clk 0:01:14]} 25. Bxd3 {[%clk 0:01:47]}  Qxd3 {[%clk 0:01:15]} 26. f6 {[%clk 0:01:48]}  Qc4 {[%clk 0:01:02]} 27. Re7 {[%clk 0:01:46]}  Qc5+ {[%clk 0:00:48]} 28. Kh1 {[%clk 0:01:44]}  Qd6 {[%clk 0:00:47]} 29. Ne5 {[%clk 0:01:36]}  Rxe7 {[%clk 0:00:25]} 30. fxe7 {[%clk 0:01:37]}  Re8 {[%clk 0:00:26]} 31. Rxf7 {[%clk 0:01:37]} 1-0


[Site "https://www.chess.com"]